fUSD/lending_fUSD_20240712
["ID","MTS","AMOUNT","RATE_DAILY","PERIOD"]
[331861915,1720795847833,-500.0,0.00014027,2]
[331861916,1720795847843,-500.0,0.00014027,2]
[331861917,1720795847853,-533.99,0.00014027,2]
[331861918,1720795847864,-816.04,0.00014027,2]
[331861919,1720795847874,-500.0,0.00014027,2]
[331861920,1720795847883,-500.0,0.00014027,2]
[331861921,1720795847892,-500.0,0.00014027,2]
[331861922,1720795847902,-500.0,0.00014027,2]
[331861923,1720795847912,-500.0,0.00014027,2]
[331861924,1720795847922,-500.0,0.00014027,2]
[331861925,1720795847932,-500.0,0.00014027,2]
[331861926,1720795847942,-500.0,0.00014027,2]
[331861927,1720795847952,-500.0,0.00014027,2]
[331861928,1720795847962,-999.22,0.00014027,2]
[331861929,1720795847973,-500.0,0.00014027,2]
[331861930,1720795847982,-633.72,0.00014027,2]
[331861931,1720795847992,-500.0,0.00014027,2]
[331861932,1720795848001,-1213.66,0.00014027,2]
[331861933,1720795848011,-938.2,0.00014027,2]
[331861934,1720795848021,-500.0,0.00014027,2]
[331861935,1720795848031,-500.0,0.00014027,2]
[331861936,1720795848041,-2076.7591,0.00014036,2]
[331861937,1720795848051,-1000.0,0.00014046,2]
[331861938,1720795848062,-26693.9962885,0.00014062,3]
[331861939,1720795848072,-29480.7294913,0.00014062,3]
[331861940,1720795848082,-500.0,0.0001407,2]
[331861941,1720795848093,-596.95,0.0001407,2]
[331861942,1720795848103,-500.0,0.0001407,2]
[331861943,1720795848113,-500.0,0.0001407,2]
[331861944,1720795848123,-1198.87,0.0001407,2]
[331861945,1720795848132,-500.0,0.0001407,2]
[331861946,1720795848142,-500.0,0.0001407,2]
[331861947,1720795848152,-500.0,0.00014071,2]
[331861948,1720795848162,-515.02,0.00014071,2]
[331861949,1720795848171,-500.0,0.00014071,2]
[331861950,1720795848181,-500.61,0.00014071,2]
[331861951,1720795848191,-500.0,0.00014071,2]
[331861952,1720795848201,-500.0,0.00014071,2]
[331861953,1720795848211,-441.8250427,0.00014071,2]
[331861954,1720795848224,-129.6449573,0.00014071,2]
[331861955,1720795848234,-1337.1509327,0.00014071,2]
[331861956,1720795848246,-443.0190673,0.00014071,2]
[331861957,1720795848256,-500.0,0.00014071,2]
[331861958,1720795848266,-500.0,0.00014071,2]
[331861959,1720795848275,-73.5809327,0.00014071,2]
[331861960,1720795848287,-1177.1290673,0.00014071,2]
[331861961,1720795848297,-26693.9962885,0.00014072,3]
[331861962,1720795848307,-539.99679579,0.00014072,2]
[331861963,1720795848317,-500.0,0.00014072,2]
[331861964,1720795848327,-553.70937423,0.00014072,2]
[331861965,1720795848337,-500.0,0.00014081,2]
[331861966,1720795848347,-619.02,0.00014081,2]
[331861967,1720795848358,-500.0,0.00014081,2]
[331861968,1720795848369,-500.0,0.00014081,2]
[331861969,1720795848379,-500.0,0.00014081,2]
[331861970,1720795848389,-500.0,0.00014081,2]
[331861971,1720795848399,-500.0,0.00014081,2]
[331861972,1720795848409,-4972.19,0.00014081,2]
[331861973,1720795848419,-500.0,0.00014081,2]
[331861974,1720795848429,-500.0,0.00014081,2]
[331861975,1720795848439,-563.56,0.00014081,2]
[331861976,1720795848449,-500.0,0.00014081,2]
[331861977,1720795848465,-500.0,0.00014081,2]
[331861978,1720795848475,-500.0,0.00014081,2]
[331861979,1720795848484,-500.0,0.00014081,2]
[331861980,1720795848494,-500.0,0.00014082,2]
[331861981,1720795848507,-500.0,0.00014082,2]
[331861982,1720795848516,-500.0,0.00014082,2]
[331861983,1720795848527,-500.0,0.00014082,2]
[331861984,1720795848537,-533.99,0.00014082,2]
[331861985,1720795848547,-816.04,0.00014082,2]
[331861986,1720795848556,-500.0,0.00014082,2]
[331861987,1720795848566,-500.0,0.00014082,2]
[331861988,1720795848576,-500.0,0.00014082,2]
[331861989,1720795848585,-500.0,0.00014082,2]
[331861990,1720795848595,-500.0,0.00014082,2]
[331861991,1720795848604,-500.0,0.00014082,2]
[331861992,1720795848615,-500.0,0.00014082,2]
[331861993,1720795848626,-500.0,0.00014082,2]
[331861994,1720795848635,-500.0,0.00014082,2]
[331861995,1720795848644,-999.22,0.00014082,2]
[331861996,1720795848654,-500.0,0.00014082,2]
[331861997,1720795848663,-633.72,0.00014082,2]
[331861998,1720795848672,-500.0,0.00014082,2]
[331861999,1720795848682,-1213.66,0.00014082,2]
[331862000,1720795848691,-938.2,0.00014082,2]
[331862001,1720795848700,-500.0,0.00014082,2]
[331862002,1720795848710,-500.0,0.00014082,2]
[331862003,1720795848719,-155.75964403,0.00014099,2]
[331862004,1720795848728,-29480.7294913,0.00014106,3]
[331862005,1720795848738,-26693.9962885,0.00014116,3]
[331862006,1720795848747,-500.0,0.00014125,2]
[331862007,1720795848756,-596.95,0.00014125,2]
[331862008,1720795848766,-500.0,0.00014125,2]
[331862009,1720795848775,-526.08,0.00014125,2]
[331862010,1720795848784,-1198.87,0.00014125,2]
[331862011,1720795848794,-500.0,0.00014125,2]
[331862012,1720795848803,-500.0,0.00014125,2]
[331862013,1720795848812,-500.0,0.00014126,2]
[331862014,1720795848822,-515.02,0.00014126,2]
[331862015,1720795848831,-500.0,0.00014126,2]
[331862016,1720795848841,-500.61,0.00014126,2]
[331862017,1720795848851,-500.0,0.00014126,2]
[331862018,1720795848860,-159.54081588,0.00014126,2]
[331862019,1720795848872,-571.47,0.00014126,2]
[331862020,1720795848881,-1780.17,0.00014126,2]
[331862021,1720795848891,-500.0,0.00014126,2]
[331862022,1720795848900,-500.0,0.00014126,2]
[331862023,1720795848909,-1250.71,0.00014126,2]
[331862024,1720795848919,-500.0,0.00014127,2]
[331862025,1720795848928,-500.0,0.00014136,2]
[331862026,1720795848938,-500.0,0.00014136,2]
[331862027,1720795848947,-500.0,0.00014136,2]
[331862028,1720795848957,-500.0,0.00014136,2]
[331862029,1720795848967,-548.35924474,0.00014136,2]
[331862030,1720795848976,-533.99,0.00014136,2]
[331862031,1720795848986,-816.04,0.00014136,2]
[331862032,1720795848996,-500.0,0.00014136,2]
[331862033,1720795849006,-500.0,0.00014136,2]
[331862034,1720795849015,-500.0,0.00014136,2]
[331862035,1720795849025,-500.0,0.00014136,2]
[331862036,1720795849035,-619.02,0.00014136,2]
[331862037,1720795849044,-500.0,0.00014136,2]
[331862038,1720795849054,-500.0,0.00014136,2]
[331862039,1720795849063,-500.0,0.00014136,2]
[331862040,1720795849073,-500.0,0.00014136,2]
[331862041,1720795849083,-500.0,0.00014136,2]
[331862042,1720795849093,-500.0,0.00014136,2]
[331862043,1720795849103,-500.0,0.00014136,2]
[331862044,1720795849112,-999.22,0.00014136,2]
[331862045,1720795849125,-500.0,0.00014136,2]
[331862046,1720795849135,-500.0,0.00014136,2]
[331862047,1720795849144,-500.0,0.00014136,2]
[331862048,1720795849154,-633.72,0.00014136,2]
[331862049,1720795849164,-500.0,0.00014136,2]
[331862050,1720795849174,-500.0,0.00014136,2]
[331862051,1720795849184,-1213.66,0.00014136,2]
[331862052,1720795849194,-938.2,0.00014136,2]
[331862053,1720795849204,-4972.19,0.00014136,2]
[331862054,1720795849215,-500.0,0.00014136,2]
[331862055,1720795849225,-500.0,0.00014136,2]
[331862056,1720795849234,-459.26415307,0.00014136,2]
[331862057,1720795849245,-500.0,0.00014136,2]
[331862058,1720795849255,-563.56,0.00014136,2]
[331862059,1720795849266,-500.0,0.00014136,2]
[331862060,1720795849276,-500.0,0.00014136,2]
[331862061,1720795849286,-500.0,0.00014136,2]
[331862062,1720795849296,-500.0,0.00014136,2]
[331862063,1720795849307,-29480.7294913,0.00014151,3]
[331862064,1720795849317,-26693.9962885,0.00014161,3]
[331862065,1720795849328,-236.78,0.00014172,2]
[331862066,1720795849338,-500.0,0.0001418,2]
[331862067,1720795849347,-596.95,0.0001418,2]
[331862068,1720795849357,-500.0,0.0001418,2]
[331862069,1720795849367,-1198.87,0.0001418,2]
[331862070,1720795849376,-500.0,0.0001418,2]
[331862071,1720795849386,-500.0,0.0001418,2]
[331862072,1720795849396,-29480.7294913,0.0001418,3]
[331862073,1720795849406,-26693.9962885,0.00014181,3]
[331862074,1720795849415,-500.0,0.00014181,2]
[331862075,1720795849424,-515.02,0.00014181,2]
[331862076,1720795849434,-500.0,0.00014181,2]
[331862077,1720795849444,-500.61,0.00014181,2]
[331862078,1720795849454,-500.0,0.00014181,2]
[331862079,1720795849466,-571.47,0.00014181,2]
[331862080,1720795849475,-1780.17,0.00014181,2]
[331862081,1720795849485,-500.0,0.00014181,2]
[331862082,1720795849495,-500.0,0.00014181,2]
[331862083,1720795849505,-1250.71,0.00014181,2]
[331862084,1720795849515,-500.0,0.00014182,2]
[331862085,1720795849525,-500.0,0.0001419,2]
[331862086,1720795849534,-619.02,0.0001419,2]
[331862087,1720795849547,-545.04425745,0.00014191,2]
[331862088,1720795849557,-500.0,0.00014191,2]
[331862089,1720795849567,-500.0,0.00014191,2]
[331862090,1720795849803,-533.99,0.00014191,2]
[331862091,1720795849813,-816.04,0.00014191,2]
[331862092,1720795849823,-500.0,0.00014191,2]
[331862093,1720795849833,-500.0,0.00014191,2]
[331862094,1720795849842,-500.0,0.00014191,2]
[331862095,1720795849852,-500.0,0.00014191,2]
[331862096,1720795849861,-500.0,0.00014191,2]
[331862097,1720795849873,-500.0,0.00014191,2]
[331862098,1720795849883,-500.0,0.00014191,2]
[331862099,1720795849893,-211.68577818,0.00014191,2]
[331862100,1720795849904,-500.0,0.00014191,2]
[331862101,1720795849914,-500.0,0.00014191,2]
[331862102,1720795849924,-500.0,0.00014191,2]
[331862103,1720795849934,-999.22,0.00014191,2]
[331862104,1720795849944,-500.0,0.00014191,2]
[331862105,1720795849954,-591.54,0.00014191,2]
[331862106,1720795849964,-500.0,0.00014191,2]
[331862107,1720795849974,-633.72,0.00014191,2]
[331862108,1720795849984,-500.0,0.00014191,2]
[331862109,1720795849994,-573.05447405,0.00014191,2]
[331862110,1720795850004,-1213.66,0.00014191,2]
[331862111,1720795850014,-938.2,0.00014191,2]
[331862112,1720795850023,-4972.19,0.00014191,2]
[331862113,1720795850033,-500.0,0.00014191,2]
[331862114,1720795850042,-500.0,0.00014191,2]
[331862115,1720795850051,-500.0,0.00014191,2]
[331862116,1720795850062,-563.56,0.00014191,2]
[331862117,1720795850072,-500.0,0.00014191,2]
[331862118,1720795850082,-500.0,0.00014191,2]
[331862119,1720795850092,-500.0,0.00014191,2]
[331862120,1720795850102,-500.0,0.00014191,2]
[331862121,1720795850112,-29480.7294913,0.00014226,3]
[331862122,1720795850123,-26693.9962885,0.00014226,3]
[331862123,1720795850133,-500.0,0.00014235,2]
[331862124,1720795850143,-596.95,0.00014235,2]
[331862125,1720795850152,-1198.87,0.00014235,2]
[331862126,1720795850162,-646.66547151,0.00014235,2]
[331862127,1720795850172,-500.0,0.00014235,2]
[331862128,1720795850182,-500.0,0.00014236,2]
[331862129,1720795850191,-515.02,0.00014236,2]
[331862130,1720795850201,-500.0,0.00014236,2]
[331862131,1720795850211,-500.61,0.00014236,2]
[331862132,1720795850221,-500.0,0.00014236,2]
[331862133,1720795850231,-571.47,0.00014236,2]
[331862134,1720795850240,-1780.17,0.00014236,2]
[331862135,1720795850250,-500.0,0.00014236,2]
[331862136,1720795850261,-500.0,0.00014236,2]
[331862137,1720795850271,-500.0,0.00014236,2]
[331862138,1720795850280,-1250.71,0.00014236,2]
[331862139,1720795850290,-355.25,0.00014244,2]
[331862140,1720795850300,-150.0,0.00014244,2]
[331862141,1720795850310,-150.0,0.00014244,2]
[331862142,1720795850320,-500.0,0.00014245,2]
[331862143,1720795850329,-619.02,0.00014245,2]
[331862144,1720795850339,-500.0,0.00014246,2]
[331862145,1720795850349,-500.0,0.00014246,2]
[331862146,1720795850358,-533.99,0.00014246,2]
[331862147,1720795850371,-816.04,0.00014246,2]
[331862148,1720795850380,-500.0,0.00014246,2]
[331862149,1720795850391,-500.0,0.00014246,2]
[331862150,1720795850400,-440.95,0.00014246,2]
[331862151,1720795850409,-500.0,0.00014246,2]
[331862152,1720795850419,-500.0,0.00014246,2]
[331862153,1720795850432,-500.0,0.00014246,2]
[331862154,1720795850441,-500.0,0.00014246,2]
[331862155,1720795850450,-500.0,0.00014246,2]
[331862156,1720795850461,-500.0,0.00014246,2]
[331862157,1720795850473,-500.0,0.00014246,2]
[331862158,1720795850483,-999.22,0.00014246,2]
[331862159,1720795850492,-500.0,0.00014246,2]
[331862160,1720795850503,-500.0,0.00014246,2]
[331862161,1720795850512,-633.72,0.00014246,2]
[331862162,1720795850521,-500.0,0.00014246,2]
[331862163,1720795850531,-1213.66,0.00014246,2]
[331862164,1720795850542,-938.2,0.00014246,2]
[331862165,1720795850553,-4972.19,0.00014246,2]
[331862166,1720795850562,-500.0,0.00014246,2]
[331862167,1720795850572,-500.0,0.00014246,2]
[331862168,1720795850582,-500.0,0.00014246,2]
[331862169,1720795850592,-563.56,0.00014246,2]
[331862170,1720795850602,-500.0,0.00014246,2]
[331862171,1720795850615,-500.0,0.00014246,2]
[331862172,1720795850627,-500.0,0.00014246,2]
[331862173,1720795850637,-500.0,0.00014246,2]
[331862174,1720795850647,-925.20784,0.00014247,2]
[331862175,1720795850657,-26693.9962885,0.00014269,3]
[331862176,1720795850667,-29480.7294913,0.0001428,3]
[331862177,1720795850677,-500.0,0.00014289,2]
[331862178,1720795850686,-200.0,0.00014289,2]
[331862179,1720795850696,-500.0,0.00014289,2]
[331862180,1720795850706,-596.95,0.00014289,2]
[331862181,1720795850716,-1198.87,0.00014289,2]
[331862182,1720795850725,-500.0,0.00014289,2]
[331862183,1720795850735,-500.0,0.0001429,2]
[331862184,1720795850744,-515.02,0.0001429,2]
[331862185,1720795850755,-500.0,0.0001429,2]
[331862186,1720795850764,-500.61,0.0001429,2]
[331862187,1720795850774,-500.0,0.0001429,2]
[331862188,1720795850784,-571.47,0.0001429,2]
[331862189,1720795850794,-26693.9962885,0.0001429,3]
[331862190,1720795850804,-1780.17,0.0001429,2]
[331862191,1720795850813,-500.0,0.0001429,2]
[331862192,1720795850823,-461.10720035,0.0001429,2]
[331862193,1720795850834,-1250.71,0.0001429,2]
[331862194,1720795850843,-500.0,0.00014291,2]
[331862195,1720795850853,-500.0,0.000143,2]
[331862196,1720795850862,-619.02,0.000143,2]
[331862197,1720795850873,-500.0,0.000143,2]
[331862198,1720795850883,-500.0,0.000143,2]
[331862199,1720795850892,-500.0,0.000143,2]
[331862200,1720795850903,-500.0,0.000143,2]
[331862201,1720795850912,-500.0,0.000143,2]
[331862202,1720795850923,-4972.19,0.000143,2]
[331862203,1720795850932,-500.0,0.000143,2]
[331862204,1720795850942,-563.56,0.000143,2]
[331862205,1720795850952,-500.0,0.000143,2]
[331862206,1720795850962,-471.29203153,0.000143,2]
[331862207,1720795850972,-500.0,0.000143,2]
[331862208,1720795850982,-500.0,0.000143,2]
[331862209,1720795850992,-500.0,0.00014301,2]
[331862210,1720795851002,-500.0,0.00014301,2]
[331862211,1720795851011,-533.99,0.00014301,2]
[331862212,1720795851022,-816.04,0.00014301,2]
[331862213,1720795851032,-500.0,0.00014301,2]
[331862214,1720795851042,-500.0,0.00014301,2]
[331862215,1720795851052,-500.0,0.00014301,2]
[331862216,1720795851062,-500.0,0.00014301,2]
[331862217,1720795851072,-500.0,0.00014301,2]
[331862218,1720795851082,-500.0,0.00014301,2]
[331862219,1720795851091,-500.0,0.00014301,2]
[331862220,1720795851101,-999.22,0.00014301,2]
[331862221,1720795851111,-633.72,0.00014301,2]
[331862222,1720795851123,-1213.66,0.00014301,2]
[331862223,1720795851132,-938.2,0.00014301,2]
[331862224,1720795851142,-500.0,0.00014301,2]
[331862225,1720795851152,-553.92,0.00014301,2]
[331862226,1720795851161,-1200.0,0.00014307,2]
[331862227,1720795851170,-150.0,0.00014307,2]
[331862228,1720795851180,-29480.7294913,0.00014326,3]
[331862229,1720795851190,-26693.9962885,0.00014336,3]
[331862230,1720795851200,-500.0,0.00014344,2]
[331862231,1720795851209,-596.95,0.00014344,2]
[331862232,1720795851219,-1198.87,0.00014344,2]
[331862233,1720795851228,-500.0,0.00014344,2]
[331862234,1720795851238,-500.0,0.00014345,2]
[331862235,1720795851248,-515.02,0.00014345,2]
[331862236,1720795851257,-500.0,0.00014345,2]
[331862237,1720795851266,-500.61,0.00014345,2]
[331862238,1720795851276,-190.52274057,0.00014345,2]
[331862239,1720795851291,-309.47725943,0.00014345,2]
[331862240,1720795851300,-351.83588117,0.00014345,2]
[331862241,1720795851339,-707.51,0.00012411,2]
[331862242,1720795851348,-250.0,0.00013699,2]
[331862243,1720795851358,-219.63411883,0.00014345,2]
[331862244,1720795851368,-1780.17,0.00014345,2]
[331862245,1720795851378,-500.0,0.00014345,2]
[331862246,1720795851387,-1250.71,0.00014345,2]
[331862247,1720795851397,-434.30650385,0.00014346,2]
[331862248,1720795851409,-65.69349615,0.00014346,2]
[331862249,1720795851419,-500.0,0.00014355,2]
[331862250,1720795851428,-619.02,0.00014355,2]
[331862251,1720795851438,-325.64670626,0.00014355,2]
[331862252,1720795851447,-500.0,0.00014355,2]
[331862253,1720795851458,-295.53652685,0.00014355,2]
[331862254,1720795851471,-204.46347315,0.00014355,2]
[331862255,1720795851481,-295.53652685,0.00014355,2]
[331862256,1720795851492,-204.46347315,0.00014355,2]
[331862257,1720795851503,-477.79453981,0.00014355,2]
[331862258,1720795851514,-22.20546019,0.00014355,2]
[331862259,1720795851523,-2423.12408877,0.00014355,2]
[331862260,1720795851535,-272.2950575,0.00014355,2]
[331862261,1720795851548,-515.14099998,0.00014355,2]
[331862262,1720795851561,-1761.62985375,0.00014355,2]
[331862263,1720795851571,-500.0,0.00014355,2]
[331862264,1720795851580,-563.56,0.00014355,2]
[331862265,1720795851590,-75.33329692,0.00014355,2]
[331862266,1720795851601,-424.66670308,0.00014355,2]
[331862267,1720795851610,-500.0,0.00014355,2]
[331862268,1720795851620,-6.38413731,0.00014355,2]
[331862269,1720795851631,-493.61586269,0.00014355,2]
[331862270,1720795851642,-500.0,0.00014356,2]
[331862271,1720795851651,-500.0,0.00014356,2]
[331862272,1720795851660,-533.15917894,0.00014356,2]
[331862273,1720795851672,-0.83082106,0.00014356,2]
[331862274,1720795851681,-765.36717894,0.00014356,2]
[331862275,1720795851693,-50.67282106,0.00014356,2]
[331862276,1720795851702,-500.0,0.00014356,2]
[331862277,1720795851711,-500.0,0.00014356,2]
[331862278,1720795851720,-506.5,0.00014356,2]
[331862279,1720795851729,-500.0,0.00014356,2]
[331862280,1720795851739,-500.0,0.00014356,2]
[331862281,1720795851749,-500.0,0.00014356,2]
[331862282,1720795851758,-500.0,0.00014356,2]
[331862283,1720795851768,-999.22,0.00014356,2]
[331862284,1720795851777,-374.65837552,0.00014356,2]
[331862285,1720795851789,-259.06162448,0.00014356,2]
[331862286,1720795851799,-216.75236121,0.00014356,2]
[331862287,1720795851811,-996.90763879,0.00014356,2]
[331862288,1720795851820,-467.94630172,0.00014356,2]
[331862289,1720795851832,-470.25369828,0.00014356,2]
[331862290,1720795851842,-612.36621777,0.00014356,2]
[331862291,1720795851851,-818.55008395,0.00014371,3]
[331862292,1720795851863,-696.54385412,0.00014371,3]
[331862293,1720795851875,-295.21458624,0.00014371,3]
[331862294,1720795851885,-274.68725396,0.00014371,3]
[331862295,1720795851897,-27395.73371303,0.00014371,3]
[331862296,1720795851907,-26693.9962885,0.0001438,3]
[331862297,1720795851916,-26693.9962885,0.0001439,3]
[331862298,1720795851925,-500.0,0.00014399,2]
[331862299,1720795851934,-596.95,0.00014399,2]
[331862300,1720795851944,-1198.87,0.00014399,2]
[331862301,1720795851953,-500.0,0.00014399,2]
[331862302,1720795851962,-639.49541232,0.000144,2]
[331862303,1720795851972,-515.02,0.000144,2]
[331862304,1720795851982,-500.0,0.000144,2]
[331862305,1720795851991,-500.61,0.000144,2]
[331862306,1720795852000,-500.0,0.000144,2]
[331862307,1720795852009,-571.47,0.000144,2]
[331862308,1720795852019,-1780.17,0.000144,2]
[331862309,1720795852028,-500.0,0.000144,2]
[331862310,1720795852039,-1250.71,0.000144,2]
[331862311,1720795852048,-29480.7294913,0.000144,3]
[331862312,1720795852058,-500.0,0.00014401,2]
[331862313,1720795852068,-500.0,0.0001441,2]
[331862314,1720795852077,-500.0,0.0001441,2]
[331862315,1720795852087,-500.0,0.0001441,2]
[331862316,1720795852096,-533.99,0.0001441,2]
[331862317,1720795852105,-816.04,0.0001441,2]
[331862318,1720795852115,-500.0,0.0001441,2]
[331862319,1720795852125,-500.0,0.0001441,2]
[331862320,1720795852135,-619.02,0.0001441,2]
[331862321,1720795852144,-500.0,0.0001441,2]
[331862322,1720795852153,-500.0,0.0001441,2]
[331862323,1720795852163,-500.0,0.0001441,2]
[331862324,1720795852173,-500.0,0.0001441,2]
[331862325,1720795852183,-500.0,0.0001441,2]
[331862326,1720795852193,-999.22,0.0001441,2]
[331862327,1720795852203,-500.0,0.0001441,2]
[331862328,1720795852212,-500.0,0.0001441,2]
[331862329,1720795852221,-633.72,0.0001441,2]
[331862330,1720795852230,-500.0,0.0001441,2]
[331862331,1720795852239,-1213.66,0.0001441,2]
[331862332,1720795852249,-938.2,0.0001441,2]
[331862333,1720795852258,-4972.19,0.0001441,2]
[331862334,1720795852267,-500.0,0.0001441,2]
[331862335,1720795852276,-563.56,0.0001441,2]
[331862336,1720795852285,-495.11719429,0.0001441,2]
[331862337,1720795852294,-500.0,0.0001441,2]
[331862338,1720795852303,-26693.9962885,0.00014436,3]
[331862339,1720795852312,-500.0,0.00014454,2]
[331862340,1720795852322,-596.95,0.00014454,2]
[331862341,1720795852331,-1198.87,0.00014454,2]
[331862342,1720795852340,-500.0,0.00014454,2]
[331862343,1720795852349,-29480.7294913,0.00014455,3]
[331862344,1720795852359,-515.02,0.00014455,2]
[331862345,1720795852367,-500.0,0.00014455,2]
[331862346,1720795852377,-500.61,0.00014455,2]
[331862347,1720795852386,-500.0,0.00014455,2]
[331862348,1720795852397,-571.47,0.00014455,2]
[331862349,1720795852406,-1780.17,0.00014455,2]
[331862350,1720795852416,-500.0,0.00014455,2]
[331862351,1720795852427,-1250.71,0.00014455,2]
[331862352,1720795852437,-500.0,0.00014456,2]
[331862353,1720795852447,-500.0,0.00014464,2]
[331862354,1720795852458,-619.02,0.00014464,2]
[331862355,1720795852473,-646.0,0.00014465,2]
[331862356,1720795852483,-500.0,0.00014465,2]
[331862357,1720795852492,-500.0,0.00014465,2]
[331862358,1720795852501,-533.99,0.00014465,2]
[331862359,1720795852512,-816.04,0.00014465,2]
[331862360,1720795852521,-178.29485895,0.00014465,2]
[331862361,1720795852530,-500.0,0.00014465,2]
[331862362,1720795852541,-500.0,0.00014465,2]
[331862363,1720795852550,-500.0,0.00014465,2]
[331862364,1720795852560,-500.0,0.00014465,2]
[331862365,1720795852571,-500.0,0.00014465,2]
[331862366,1720795852580,-500.0,0.00014465,2]
[331862367,1720795852588,-999.22,0.00014465,2]
[331862368,1720795852598,-500.0,0.00014465,2]
[331862369,1720795852607,-500.0,0.00014465,2]
[331862370,1720795852617,-633.72,0.00014465,2]
[331862371,1720795852629,-500.0,0.00014465,2]
[331862372,1720795852640,-1213.66,0.00014465,2]
[331862373,1720795852650,-938.2,0.00014465,2]
[331862374,1720795852659,-4972.19,0.00014465,2]
[331862375,1720795852669,-500.0,0.00014465,2]
[331862376,1720795852679,-563.56,0.00014465,2]
[331862377,1720795852688,-500.0,0.00014465,2]
[331862378,1720795852697,-26693.9962885,0.0001448,3]
[331862379,1720795852707,-29480.7294913,0.000145,3]
[331862380,1720795852716,-500.0,0.00014509,2]
[331862381,1720795852725,-596.95,0.00014509,2]
[331862382,1720795852734,-1198.87,0.00014509,2]
[331862383,1720795852743,-500.0,0.00014509,2]
[331862384,1720795852752,-515.02,0.0001451,2]
[331862385,1720795852763,-500.0,0.0001451,2]
[331862386,1720795852772,-500.61,0.0001451,2]
[331862387,1720795852781,-500.0,0.0001451,2]
[331862388,1720795852790,-571.47,0.0001451,2]
[331862389,1720795852800,-26693.9962885,0.0001451,3]
[331862390,1720795852809,-1780.17,0.0001451,2]
[331862391,1720795852818,-500.0,0.0001451,2]
[331862392,1720795852828,-500.0,0.0001451,2]
[331862393,1720795852839,-1250.71,0.0001451,2]
[331862394,1720795852848,-500.0,0.00014519,2]
[331862395,1720795852858,-619.02,0.00014519,2]
[331862396,1720795852867,-500.0,0.0001452,2]
[331862397,1720795852877,-500.0,0.0001452,2]
[331862398,1720795852886,-533.99,0.0001452,2]
[331862399,1720795852896,-816.04,0.0001452,2]
[331862400,1720795852905,-500.0,0.0001452,2]
[331862401,1720795852914,-500.0,0.0001452,2]
[331862402,1720795852923,-500.0,0.0001452,2]
[331862403,1720795852932,-500.0,0.0001452,2]
[331862404,1720795852941,-500.0,0.0001452,2]
[331862405,1720795852950,-534.59267637,0.0001452,2]
[331862406,1720795852959,-999.22,0.0001452,2]
[331862407,1720795852969,-500.0,0.0001452,2]
[331862408,1720795852978,-500.0,0.0001452,2]
[331862409,1720795852988,-633.72,0.0001452,2]
[331862410,1720795852999,-500.0,0.0001452,2]
[331862411,1720795853008,-1213.66,0.0001452,2]
[331862412,1720795853018,-938.2,0.0001452,2]
[331862413,1720795853027,-4972.19,0.0001452,2]
[331862414,1720795853036,-500.0,0.0001452,2]